fUST/lending_fUST_20250309
["ID","MTS","AMOUNT","RATE_DAILY","PERIOD"]
[355674746,1741452639048,-500.0,0.00046845,10]
[355674747,1741452639060,-1131.83,0.00046848,120]
[355674748,1741452639070,-500.0,0.00046849,120]
[355674749,1741452639079,-159.0,0.00046849,120]
[355674750,1741452639091,-500.0,0.00046849,120]
[355674751,1741452639102,-500.0,0.00046849,120]
[355674752,1741452639112,-500.0,0.00046849,120]
[355674753,1741452639122,-500.0,0.00046849,120]
[355674754,1741452639134,-500.0,0.00046849,120]
[355674755,1741452639144,-500.0,0.00046849,120]
[355674756,1741452639153,-500.0,0.00046849,120]
[355674757,1741452639165,-500.0,0.00046849,120]
[355674758,1741452639175,-606.09094382,0.00046849,120]
[355674759,1741452639185,-784.8,0.00046849,120]
[355674760,1741452639195,-500.0,0.00046849,120]
[355674761,1741452639205,-500.0,0.00046849,120]
[355674762,1741452639215,-1507.28,0.00046849,120]
[355674763,1741452639225,-505.08,0.00046849,120]
[355674764,1741452639235,-500.0,0.00046849,120]
[355674765,1741452639244,-500.0,0.00046849,120]
[355674766,1741452639254,-513.01,0.00046849,120]
[355674767,1741452639264,-500.0,0.00046849,120]
[355674768,1741452639273,-500.0,0.00046849,120]
[355674769,1741452639283,-2379.1,0.00046849,120]
[355674770,1741452639293,-500.0,0.00046849,120]
[355674771,1741452639302,-1740.96,0.00046849,120]
[355674772,1741452639312,-500.0,0.00046849,120]
[355674773,1741452639322,-500.0,0.00046849,120]
[355674774,1741452639332,-500.0,0.00046849,120]
[355674777,1741452639341,-6125.34,0.00046849,120]
[355674779,1741452639350,-6966.93,0.00046849,7]
[355674781,1741452639360,-2638.28,0.00046849,120]
[355674782,1741452639370,-500.0,0.00046849,120]
[355674783,1741452639380,-1758.53,0.00046849,120]
[355674784,1741452639390,-947.91,0.00046849,120]
[355674785,1741452639400,-328.34090044,0.00046849,120]
[355674786,1741452639410,-500.0,0.00046849,120]
[355674787,1741452639419,-500.0,0.00046849,120]
[355674788,1741452639429,-500.0,0.00046849,120]
[355674789,1741452639439,-160.0,0.00046849,7]
[355674791,1741452639448,-500.0,0.00046849,120]
[355674793,1741452639458,-500.0,0.00046849,120]
[355674794,1741452639468,-1787.64,0.00046849,2]
[355674795,1741452639477,-500.0,0.00046849,120]
[355674796,1741452639486,-501.085792,0.00046849,2]
[355674797,1741452639496,-500.0,0.00046849,120]
[355674798,1741452639505,-500.0,0.00046849,120]
[355674799,1741452639515,-500.0,0.00046849,2]
[355674800,1741452639524,-500.0,0.00046873,7]
[355674801,1741452639533,-500.0,0.00047123,120]
[355674802,1741452639542,-431.67078863,0.00047123,120]
[355674803,1741452639552,-500.0,0.00047123,120]
[355674804,1741452639561,-212.013784,0.00047123,120]
[355674805,1741452639570,-500.0,0.00047123,120]
[355674806,1741452639580,-500.0,0.00047123,120]
[355674807,1741452639589,-500.0,0.00047123,120]
[355674808,1741452639599,-500.0,0.00047123,120]
[355674810,1741452639609,-500.0,0.00047123,120]
[355674812,1741452639618,-784.8,0.00047123,120]
[355674814,1741452639627,-500.0,0.00047123,120]
[355674816,1741452639637,-500.0,0.00047123,120]
[355674818,1741452639647,-1507.28,0.00047123,120]
[355674820,1741452639656,-505.08,0.00047123,120]
[355674822,1741452639665,-501.36903068,0.00047123,120]
[355674824,1741452639675,-500.0,0.00047123,120]
[355674826,1741452639685,-513.01,0.00047123,120]
[355674828,1741452639695,-500.0,0.00047123,120]
[355674830,1741452639705,-566.73094532,0.00047123,120]
[355674832,1741452639715,-2379.1,0.00047123,120]
[355674834,1741452639724,-500.0,0.00047123,120]
[355674836,1741452639734,-1740.96,0.00047123,120]
[355674838,1741452639743,-500.0,0.00047123,120]
[355674841,1741452639753,-500.0,0.00047123,120]
[355674843,1741452639763,-500.0,0.00047123,120]
[355674845,1741452639772,-6125.34,0.00047123,120]
[355674846,1741452639781,-6966.93,0.00047123,7]
[355674848,1741452639790,-2638.28,0.00047123,120]
[355674850,1741452639799,-500.0,0.00047123,120]
[355674852,1741452639809,-1758.53,0.00047123,120]
[355674855,1741452639820,-947.91,0.00047123,120]
[355674866,1741452639926,-500.0,0.00047123,120]
[355674868,1741452639936,-500.0,0.00047123,120]
[355674870,1741452639945,-500.0,0.00047123,120]
[355674871,1741452639955,-500.0,0.00047123,120]
[355674872,1741452639964,-500.0,0.00047123,120]
[355674873,1741452639974,-1787.64,0.00047123,2]
[355674875,1741452639983,-500.0,0.00047123,120]
[355674877,1741452639992,-500.0,0.00047123,120]
[355674878,1741452640002,-500.0,0.00047123,120]
[355674880,1741452640011,-500.0,0.00047123,2]
[355674882,1741452640020,-200.0,0.00047172,120]
[355674884,1741452640030,-325.26509683,0.00047256,120]
[355674887,1741452640039,-500.0,0.00047373,10]
[355674889,1741452640049,-500.0,0.00047373,2]
[355674891,1741452640062,-316.48226367,0.00047386,4]
[355674892,1741452640072,-316.48226367,0.0004739,4]
[355674894,1741452640081,-204792.22532355,0.00047396,20]
[355674896,1741452640090,-523.58012478,0.00047397,120]
[355674898,1741452640100,-500.0,0.00047397,120]
[355674900,1741452640110,-500.0,0.00047397,120]
[355674902,1741452640119,-500.0,0.00047397,120]
[355674904,1741452640128,-500.0,0.00047397,120]
[355674906,1741452640138,-500.0,0.00047397,120]
[355674908,1741452640148,-500.0,0.00047397,120]
[355674910,1741452640157,-784.8,0.00047397,120]
[355674911,1741452640166,-500.0,0.00047397,120]
[355674913,1741452640175,-500.0,0.00047397,120]
[355674916,1741452640184,-1507.28,0.00047397,120]
[355674917,1741452640194,-505.08,0.00047397,120]
[355674920,1741452640203,-513.01,0.00047397,120]
[355674922,1741452640213,-260.87046636,0.00047397,120]
[355674924,1741452640223,-2379.1,0.00047397,120]
[355674926,1741452640232,-500.0,0.00047397,120]
[355674928,1741452640241,-1740.96,0.00047397,120]
[355674930,1741452640253,-500.0,0.00047397,120]
[355674932,1741452640262,-500.0,0.00047397,120]
[355674934,1741452640271,-500.0,0.00047397,120]
[355674936,1741452640280,-6125.34,0.00047397,120]
[355674938,1741452640289,-6966.93,0.00047397,7]
[355674940,1741452640298,-2638.28,0.00047397,120]
[355674942,1741452640308,-500.0,0.00047397,120]
[355674944,1741452640317,-1758.53,0.00047397,120]
[355674946,1741452640326,-947.91,0.00047397,120]
[355674948,1741452640335,-500.0,0.00047397,120]
[355674950,1741452640345,-500.0,0.00047397,120]
[355674952,1741452640354,-500.0,0.00047397,120]
[355674954,1741452640363,-500.0,0.00047397,120]
[355674956,1741452640373,-500.0,0.00047397,120]
[355674958,1741452640382,-1787.64,0.00047397,2]
[355674960,1741452640391,-500.0,0.00047397,120]
[355674962,1741452640401,-500.0,0.00047397,120]
[355674963,1741452640411,-244.47570627,0.00047397,120]
[355674966,1741452640421,-500.0,0.00047397,2]
[355674968,1741452640431,-200000.0,0.000474,7]
[355674970,1741452640440,-473.0406,0.00047473,10]
[355674972,1741452640449,-500.0,0.00047473,10]
[355674974,1741452640458,-500.0,0.00047473,10]
[355674976,1741452640468,-501.80293609,0.00047473,10]
[355674978,1741452640477,-500.0,0.00047473,10]
[355674980,1741452640487,-500.0,0.00047473,10]
[355674982,1741452640498,-500.0,0.00047473,2]
[355674984,1741452640508,-503.08777596,0.00047473,10]
[355674986,1741452640517,-500.0,0.00047473,10]
[355674988,1741452640526,-500.0,0.00047473,10]
[355674990,1741452640535,-500.0,0.00047473,10]
[355674992,1741452640544,-316.48226367,0.0004749,4]
[355674993,1741452640558,-200000.0,0.000475,30]
[355674995,1741452640567,-151.277116,0.000475,120]
[355674997,1741452640576,-151.277116,0.000475,120]
[355674999,1741452640586,-151.000001,0.000475,120]
[355675001,1741452640595,-151.0,0.000475,120]
[355675003,1741452640604,-151.0,0.000475,120]
[355675005,1741452640613,-255.818195,0.000475,120]
[355675007,1741452640623,-151.0,0.000475,120]
[355675009,1741452640632,-151.0,0.000475,120]
[355675011,1741452640642,-300.554448,0.000475,120]
[355675013,1741452640651,-151.0,0.000475,120]
[355675015,1741452640660,-151.0,0.000475,120]
[355675017,1741452640669,-200.0,0.00047526,120]
[355675019,1741452640678,-3000.0,0.00047571,2]
[355675021,1741452640687,-150.0,0.00047573,3]
[355675023,1741452640696,-500.0,0.00047573,10]
[355675025,1741452640705,-612.03291519,0.00047573,10]
[355675026,1741452640714,-500.0,0.00047573,10]
[355675027,1741452640723,-332.83514053,0.00047573,10]
[355675028,1741452640733,-500.0,0.00047573,10]
[355675029,1741452640741,-500.0,0.00047573,2]
[355675030,1741452640751,-100343.0,0.000476,30]
[355675031,1741452640760,-151.0,0.000476,120]
[355675032,1741452640769,-151.0,0.000476,120]
[355675033,1741452640778,-151.0,0.000476,120]
[355675034,1741452640787,-151.0,0.000476,120]
[355675035,1741452640796,-151.0,0.000476,120]
[355675036,1741452640805,-151.277116,0.000476,120]
[355675037,1741452640814,-151.277116,0.000476,120]
[355675038,1741452640823,-1186.841627,0.000476,120]
[355675039,1741452640832,-1186.841627,0.000476,120]
[355675040,1741452640841,-151.0,0.000476,120]
[355675041,1741452640850,-184.451089,0.000476,120]
[355675042,1741452640859,-1131.83,0.0004767,120]
[355675043,1741452640868,-151.0,0.00047671,120]
[355675044,1741452640877,-151.0,0.00047671,120]
[355675045,1741452640886,-500.0,0.00047671,120]
[355675046,1741452640895,-500.0,0.00047671,120]
[355675047,1741452640904,-500.0,0.00047671,120]
[355675048,1741452640914,-500.0,0.00047671,120]
[355675049,1741452640924,-500.0,0.00047671,120]
[355675050,1741452640933,-500.0,0.00047671,120]
[355675052,1741452640942,-784.8,0.00047671,120]
[355675053,1741452640952,-500.0,0.00047671,120]
[355675055,1741452640961,-500.0,0.00047671,120]
[355675057,1741452640971,-1507.28,0.00047671,120]
[355675059,1741452640980,-505.08,0.00047671,120]
[355675061,1741452640989,-513.01,0.00047671,120]
[355675063,1741452640999,-151.0,0.00047671,120]
[355675066,1741452641008,-2379.1,0.00047671,120]
[355675068,1741452641018,-500.0,0.00047671,120]
[355675070,1741452641027,-1740.96,0.00047671,120]
[355675072,1741452641037,-500.0,0.00047671,120]
[355675073,1741452641046,-500.0,0.00047671,120]
[355675075,1741452641056,-500.0,0.00047671,120]
[355675077,1741452641068,-6125.34,0.00047671,120]
[355675079,1741452641078,-151.0,0.00047671,120]
[355675081,1741452641087,-6966.93,0.00047671,7]
[355675083,1741452641096,-2638.28,0.00047671,120]
[355675085,1741452641106,-500.0,0.00047671,120]
[355675087,1741452641116,-1758.53,0.00047671,120]
[355675090,1741452641126,-947.91,0.00047671,120]
[355675091,1741452641137,-500.0,0.00047671,120]
[355675094,1741452641146,-151.0,0.00047671,120]
[355675095,1741452641155,-500.0,0.00047671,120]
[355675097,1741452641165,-151.0,0.00047671,120]
[355675099,1741452641174,-500.0,0.00047671,120]
[355675101,1741452641183,-500.0,0.00047671,120]
[355675103,1741452641193,-500.0,0.00047671,120]
[355675105,1741452641203,-1787.64,0.00047671,2]
[355675107,1741452641212,-500.0,0.00047671,120]
[355675109,1741452641221,-500.0,0.00047671,120]
[355675111,1741452641230,-500.0,0.00047671,2]
[355675113,1741452641239,-152.54,0.000477,42]
[355675115,1741452641249,-152.54,0.000477,42]
[355675117,1741452641258,-152.54,0.000477,42]
[355675119,1741452641267,-152.54,0.000477,42]
[355675121,1741452641276,-200.0,0.00047771,120]
[355675123,1741452641286,-161.54963,0.00047844,120]
[355675125,1741452641295,-178.108394,0.00047844,120]
[355675128,1741452641305,-14238.0,0.0004785,30]
[355675130,1741452641315,-185.78,0.00047944,30]
[355675132,1741452641324,-265.32967141,0.00047945,120]
[355675134,1741452641333,-500.0,0.00047945,120]
[355675136,1741452641343,-500.0,0.00047945,120]
[355675138,1741452641353,-500.0,0.00047945,120]
[355675140,1741452641363,-500.0,0.00047945,120]
[355675142,1741452641372,-500.0,0.00047945,120]
[355675144,1741452641381,-784.8,0.00047945,120]
[355675146,1741452641391,-500.0,0.00047945,120]
[355675148,1741452641400,-500.0,0.00047945,120]
[355675150,1741452641409,-1507.28,0.00047945,120]
[355675152,1741452641419,-505.08,0.00047945,120]
[355675154,1741452641428,-513.01,0.00047945,120]
[355675156,1741452641437,-2379.1,0.00047945,120]
[355675158,1741452641446,-500.0,0.00047945,120]
[355675160,1741452641455,-1740.96,0.00047945,120]
[355675162,1741452641464,-500.0,0.00047945,120]
[355675164,1741452641473,-500.0,0.00047945,120]
[355675166,1741452641482,-500.0,0.00047945,120]
[355675168,1741452641491,-6125.34,0.00047945,120]
[355675170,1741452641500,-6966.93,0.00047945,7]
[355675172,1741452641510,-2638.28,0.00047945,120]
[355675174,1741452641519,-500.0,0.00047945,120]
[355675176,1741452641528,-1758.53,0.00047945,120]
[355675178,1741452641537,-947.91,0.00047945,120]
[355675180,1741452641548,-500.0,0.00047945,120]
[355675182,1741452641557,-500.0,0.00047945,120]
[355675184,1741452641567,-500.0,0.00047945,120]
[355675186,1741452641576,-500.0,0.00047945,120]
[355675188,1741452641585,-500.0,0.00047945,120]
[355675190,1741452641594,-1787.64,0.00047945,2]
[355675192,1741452641603,-500.0,0.00047945,120]
[355675194,1741452641613,-500.0,0.00047945,120]
[355675196,1741452641623,-500.0,0.00047945,2]
[355675198,1741452641632,-1746.29286359,0.00047999,42]
[355675200,1741452641642,-301456.28327,0.00047999,4]
[355675202,1741452641651,-151.0,0.00048,120]
[355675204,1741452641660,-10396.68750568,0.00048,120]
[355675206,1741452641670,-175.0,0.00048,90]
[355675208,1741452641678,-176.0,0.00048,90]
[355675210,1741452641687,-208.3226206,0.00048018,4]
[355675212,1741452641697,-250.0,0.00048121,3]
[355675214,1741452641706,-325.26509683,0.00048137,120]
[355675216,1741452641715,-500.0,0.00048207,93]
[355675218,1741452641724,-500.0,0.00048219,120]
[355675220,1741452641732,-500.0,0.00048219,120]
[355675222,1741452641742,-500.0,0.00048219,120]
[355675224,1741452641751,-500.0,0.00048219,120]
[355675226,1741452641760,-500.0,0.00048219,120]
[355675228,1741452641770,-784.8,0.00048219,120]
[355675230,1741452641779,-500.0,0.00048219,120]
[355675232,1741452641788,-500.0,0.00048219,120]
[355675234,1741452641797,-1507.28,0.00048219,120]
[355675236,1741452641806,-505.08,0.00048219,120]
[355675238,1741452641815,-513.01,0.00048219,120]
[355675240,1741452641825,-2379.1,0.00048219,120]
[355675242,1741452641835,-500.0,0.00048219,120]
[355675244,1741452641845,-1740.96,0.00048219,120]
[355675246,1741452641854,-500.0,0.00048219,120]
[355675248,1741452641863,-498.33778771,0.00048219,120]
[355675250,1741452641872,-500.0,0.00048219,120]
[355675252,1741452641881,-6125.34,0.00048219,120]
[355675254,1741452641891,-6966.93,0.00048219,7]
[355675256,1741452641900,-2638.28,0.00048219,120]
[355675258,1741452641909,-500.0,0.00048219,120]
[355675260,1741452641919,-1758.53,0.00048219,120]
[355675262,1741452641928,-947.91,0.00048219,120]
[355675264,1741452641937,-500.0,0.00048219,120]
[355675266,1741452641947,-245.17237762,0.00048219,120]
[355675268,1741452641956,-500.0,0.00048219,120]
[355675270,1741452641966,-500.0,0.00048219,120]
[355675272,1741452641975,-500.0,0.00048219,120]
[355675274,1741452641984,-1787.64,0.00048219,2]
[355675276,1741452641994,-500.0,0.00048219,120]
[355675278,1741452642004,-500.0,0.00048219,120]
[355675280,1741452642014,-500.0,0.00048219,2]
[355675290,1741452642096,-452.6206638,0.0004826,2]
[355675293,1741452642115,-500.0,0.00048307,96]
[355675295,1741452642125,-175.0,0.00048356,90]
[355675297,1741452642134,-500.0,0.00048407,90]
[355675299,1741452642146,-1131.83,0.00048492,120]
[355675301,1741452642155,-500.0,0.00048493,120]
[355675303,1741452642165,-500.0,0.00048493,120]
[355675305,1741452642175,-500.0,0.00048493,120]
[355675307,1741452642184,-500.0,0.00048493,120]
[355675309,1741452642194,-500.0,0.00048493,120]
[355675311,1741452642203,-784.8,0.00048493,120]
[355675313,1741452642212,-151.0,0.00048493,120]
[355675315,1741452642222,-500.0,0.00048493,120]
[355675317,1741452642231,-500.0,0.00048493,120]
[355675319,1741452642241,-151.0,0.00048493,120]
[355675321,1741452642250,-151.0,0.00048493,120]
[355675323,1741452642260,-1507.28,0.00048493,120]
[355675325,1741452642271,-505.08,0.00048493,120]
[355675328,1741452642281,-151.277116,0.00048493,120]
[355675330,1741452642290,-151.277116,0.00048493,120]
[355675332,1741452642300,-513.01,0.00048493,120]
[355675334,1741452642310,-151.0,0.00048493,120]
[355675337,1741452642319,-1186.841627,0.00048493,120]
[355675339,1741452642329,-1186.841627,0.00048493,120]
[355675341,1741452642338,-2379.1,0.00048493,120]
[355675343,1741452642348,-500.0,0.00048493,120]
[355675344,1741452642357,-1740.96,0.00048493,120]
[355675346,1741452642366,-500.0,0.00048493,120]
[355675348,1741452642376,-500.0,0.00048493,120]
[355675350,1741452642385,-6125.34,0.00048493,120]
[355675352,1741452642394,-154.388848,0.00048493,120]
[355675354,1741452642404,-2638.28,0.00048493,120]
[355675356,1741452642414,-6966.93,0.00048493,7]
[355675358,1741452642423,-500.0,0.00048493,120]
[355675360,1741452642433,-1758.53,0.00048493,120]
[355675362,1741452642442,-947.91,0.00048493,120]
[355675365,1741452642453,-151.0,0.00048493,120]
[355675368,1741452642463,-500.0,0.00048493,120]
[355675370,1741452642472,-151.0,0.00048493,120]
[355675372,1741452642483,-151.0,0.00048493,120]
[355675374,1741452642492,-500.0,0.00048493,120]
[355675376,1741452642503,-500.0,0.00048493,120]
[355675378,1741452642513,-500.0,0.00048493,120]
[355675380,1741452642524,-1787.64,0.00048493,2]
[355675382,1741452642534,-500.0,0.00048493,120]
[355675384,1741452642545,-500.0,0.00048493,120]
[355675386,1741452642555,-500.0,0.00048493,2]
[355675388,1741452642565,-1394.19,0.000485,30]
[355675390,1741452642575,-1100.44,0.000485,30]
[355675393,1741452642584,-151.0,0.000485,120]
[355675395,1741452642593,-500.0,0.00048507,99]
[355675397,1741452642603,-4180.36909774,0.00048508,120]
[355675399,1741452642613,-4180.36909774,0.00048512,120]
[355675401,1741452642622,-452.6206639,0.00048523,2]
[355675403,1741452642631,-579.5426156,0.00048528,120]
[355675405,1741452642640,-1224.43156841,0.00048534,120]
[355675407,1741452642650,-1740.18908536,0.00048537,120]
[355675409,1741452642659,-2733.20206078,0.00048541,120]
[355675411,1741452642668,-200.0,0.00048541,120]
[355675413,1741452642677,-2733.20206078,0.00048551,120]
[355675415,1741452642687,-2490.03124958,0.00048553,120]
[355675417,1741452642696,-2490.03124958,0.00048555,120]
[355675419,1741452642706,-579.5426156,0.00048556,120]
[355675421,1741452642715,-579.5426156,0.00048558,120]
[355675423,1741452642725,-1740.18908536,0.0004856,120]
[355675425,1741452642735,-1740.18908536,0.00048562,120]
[355675427,1741452642745,-2490.03124958,0.00048568,120]
[355675429,1741452642755,-2733.20206078,0.00048575,120]
[355675431,1741452642764,-1740.18908536,0.0004858,120]
[355675433,1741452642774,-2733.20206078,0.00048581,120]
[355675435,1741452642783,-4180.36909774,0.00048581,120]
[355675437,1741452642792,-1224.43156841,0.00048587,120]
[355675439,1741452642801,-2490.03124958,0.00048593,120]
[355675441,1741452642810,-4180.36909774,0.00048594,120]
[355675443,1741452642819,-579.5426156,0.00048597,120]
[355675445,1741452642829,-1224.43156841,0.00048598,120]
[355675447,1741452642838,-1224.43156841,0.000486,120]
[355675449,1741452642847,-500.0,0.00048607,97]
[355675451,1741452642856,-352.20076284,0.00048668,3]
[355675453,1741452642865,-200.0,0.00048693,120]
[355675455,1741452642875,-500.0,0.00048707,99]
[355675457,1741452642885,-500.0,0.00048767,120]
[355675459,1741452642894,-500.0,0.00048767,120]
[355675461,1741452642903,-500.0,0.00048767,120]
[355675463,1741452642912,-500.0,0.00048767,120]
[355675465,1741452642922,-500.0,0.00048767,120]
[355675467,1741452642932,-784.8,0.00048767,120]
[355675469,1741452642940,-500.0,0.00048767,120]
[355675471,1741452642949,-500.0,0.00048767,120]
[355675473,1741452642958,-1507.28,0.00048767,120]
[355675475,1741452642967,-505.08,0.00048767,120]
[355675477,1741452642975,-513.01,0.00048767,120]
[355675479,1741452642984,-2379.1,0.00048767,120]
[355675481,1741452642992,-500.0,0.00048767,120]
[355675482,1741452643001,-1740.96,0.00048767,120]
[355675484,1741452643010,-500.0,0.00048767,120]
[355675486,1741452643020,-500.0,0.00048767,120]
[355675488,1741452643029,-6125.34,0.00048767,120]
[355675490,1741452643038,-2638.28,0.00048767,120]
[355675492,1741452643047,-6966.93,0.00048767,7]
[355675494,1741452643056,-500.0,0.00048767,120]
[355675496,1741452643068,-1758.53,0.00048767,120]
[355675498,1741452643077,-947.91,0.00048767,120]
[355675500,1741452643086,-500.0,0.00048767,120]
[355675502,1741452643095,-500.0,0.00048767,120]
[355675504,1741452643105,-500.0,0.00048767,120]
[355675506,1741452643114,-500.0,0.00048767,120]
[355675508,1741452643123,-1787.64,0.00048767,2]
[355675510,1741452643134,-500.0,0.00048767,120]
[355675512,1741452643146,-500.0,0.00048767,120]
[355675514,1741452643156,-500.0,0.00048767,2]
[355675516,1741452643166,-500.0,0.00048807,91]
[355675518,1741452643176,-500.0,0.00048873,10]
[355675520,1741452643185,-150.0,0.00048873,10]
[355675522,1741452643194,-2552.57900479,0.000489,42]
[355675524,1741452643203,-111983.37572746,0.000489,2]
[355675534,1741452643275,-2772.61632078,0.000489,2]
[355675536,1741452643293,-772.79413623,0.000489,2]
[355675539,1741452643306,-493.28256153,0.000489,2]
[355675541,1741452643317,-506.06236576,0.000489,2]
[355675551,1741452643399,-2.51355204,0.00046835,10]
[355677305,1741452702615,1012.8981811,0.00042864,2]
[355677306,1741452736107,500.0,0.00032,10]
[355677307,1741452736508,500.0,0.00032,10]
[355677308,1741452736850,64.26030742,0.00032,10]
[355677309,1741452736871,435.73969258,0.00032,10]
[355677310,1741452737745,500.0,0.00032,10]
[355677311,1741452738104,500.0,0.00032,10]
[355677312,1741452738442,38.85572767,0.0002801,2]
[355677313,1741452738463,461.14427233,0.0002801,2]
[355677314,1741452738917,500.0,0.0002801,2]
[355677315,1741452739271,500.0,0.0002801,2]
[355677316,1741452739626,500.0,0.0002801,2]
[355677317,1741452740123,533.49580046,0.0002801,2]
[355677318,1741452740512,190.0,0.00032,10]
[355677319,1741452741524,500.0,0.00032,10]
[355677320,1741452741926,500.0,0.00032,10]
[355677321,1741452742367,385.01823355,0.00032,10]
[355677322,1741452742391,114.98176645,0.00032,10]
[355677323,1741452742720,500.0,0.00032,10]
[355677324,1741452743085,500.0,0.00032,10]
[355677325,1741452743370,500.0,0.00032,10]
[355677326,1741452743575,216.86559395,0.0002801,2]
[355677348,1741453639093,-198.58157166,0.00028009,2]
[355677349,1741453640118,-101.41842834,0.00028009,2]
[355677350,1741453640142,-283.13440605,0.0002801,2]
[355677351,1741453640164,-500.0,0.0002801,2]
[355677352,1741453640185,-500.0,0.0002801,2]
[355677353,1741453640208,-448.05084258,0.0002801,2]
[355677354,1741453640250,-51.94915742,0.0002801,2]
[355677355,1741453640272,-500.0,0.0002801,2]
[355677356,1741453640293,-500.0,0.0002801,2]
[355677357,1741453640315,-900.0,0.0002801,2]
[355677358,1741453640336,-681.55665598,0.0002801,2]
[355677359,1741453640356,-625.97698097,0.000281,2]
[355677360,1741453640377,-479.38147114,0.000281,5]
[355677361,1741453644153,-20.61852886,0.000281,5]
[355677362,1741453644175,-1610.47394034,0.000289,5]
[355677363,1741453644198,-237.21891841,0.0003005,5]
[355677364,1741453651101,-262.78108159,0.0003005,5]
[355677365,1741453651122,-500.0,0.00030067,2]
[355677366,1741453651143,-500.0,0.00030067,2]
[355677367,1741453651164,-500.0,0.00030067,5]
[355677368,1741453651185,-500.0,0.00030067,5]
[355677369,1741453651205,-500.0,0.00032,10]
[355677370,1741453651226,-189.75881607,0.00032,10]
[355677371,1741453651246,-500.0,0.00032,10]
[355677372,1741453651266,-500.0,0.00032,10]
[355677373,1741453651287,-344.25790927,0.00032,10]
[355677376,1741453748167,-531.76866585,0.0002801,2]
[355677377,1741453748197,-400.0,0.00031999,2]
[355677378,1741453748220,-366.68991809,0.00032,10]
[355677379,1741453748243,-500.0,0.00032,10]
[355677380,1741453748265,-184.77170958,0.00032,10]
[355677381,1741453748286,-502.07812806,0.00032,10]
[355677382,1741453748306,-500.0,0.00032,10]
[355677383,1741453748325,-1556.79147572,0.000329,6]
[355677384,1741453748345,-1000.0,0.00033579,5]
[355677385,1741453748365,-560.0,0.00034417,2]
[355677386,1741453748384,-610.138333,0.00034688,2]
[355677387,1741453748404,-528.41652045,0.00035529,5]
[355677388,1741453748425,-162.545188,0.0003589,2]
[355677389,1741453748460,-956.668393,0.00036148,2]
[355677390,1741453748499,-1014.0560543,0.00036178,2]
[355677391,1741453748543,-162.63254843,0.000362,98]
[355677392,1741453748568,-12.98665258,0.00036297,2]
[355677393,1741453749087,-1798.72255542,0.00036297,2]
[355677394,1741453749113,-162.63254841,0.00036573,100]
[355677395,1741453749134,-783.0,0.00037017,2]
[355677396,1741453749157,-805.0,0.00039814,5]
[355677397,1741453749177,-150.0,0.0004,120]
[355677398,1741453749200,-470.29581716,0.00040764,2]
[355677399,1741453749222,-907.62184,0.00041,120]
[355677400,1741453749242,-162.545188,0.00041211,2]
[355677401,1741453749262,-150.0,0.00042,120]
[355677402,1741453749281,-150.0,0.00042,120]
[355677403,1741453749301,-1500.0,0.00043598,10]